[Event "Championnat National du Sénégal"]
[Site "Arène National, Pikine, Senegal"]
[Date "2022.11.12"]
[Round "3.5"]
[White "Lesbros, Bernard"]
[Black "Ba, El Hadji Seydou Nourou"]
[Result "0-1"]
[TimeControl "01.30 fb .30"]
[WhiteElo "1878"]
[BlackElo "1644"]

1. Nf3 {[%clk 01:30:50]} {[%emt 00:00:09]} d5 {[%clk 01:30:43]} {[%emt
00:00:18]} 2. d4 {[%clk 01:30:44]} {[%emt 00:00:35]} Nf6 {[%clk 01:30:37]}
{[%emt 00:00:36]} 3. c3 {[%clk 01:29:58]} {[%emt 00:01:16]} c5 {[%clk
01:30:23]} {[%emt 00:00:44]} 4. dxc5 {[%clk 01:29:35]} {[%emt 00:00:52]} e6
{[%clk 01:30:17]} {[%emt 00:00:37]} 5. b4 {[%emt 00:02:21]} a5 {[%clk
01:28:57]} 6. Bb2 {[%clk 01:26:27]} {[%emt 00:03:35]} b6 {[%clk 01:27:11]}
{[%emt 00:02:17]} 7. e3 {[%clk 01:19:16]} {[%emt 00:07:40]} bxc5 {[%clk
01:23:38]} {[%emt 00:04:04]} 8. b5 {[%clk 01:17:55]} {[%emt 00:01:50]} c4
{[%clk 01:14:10]} {[%emt 00:09:58]} 9. a4 {[%clk 01:17:07]} {[%emt 00:01:18]}
Nbd7 {[%emt 00:01:13]} 10. Ba3 {[%emt 00:05:08]} Bxa3 {[%clk 01:07:05]} {[%emt
00:01:14]} 11. Nxa3 {[%clk 01:14:05]} {[%emt 00:03:31]} Nc5 {[%clk 01:05:37]}
{[%emt 00:01:59]} 12. Qc2 {[%clk 01:11:14]} {[%emt 00:03:20]} Nfe4 {[%clk
00:59:54]} {[%emt 00:06:13]} 13. Rd1 {[%clk 01:09:59]} {[%emt 00:01:45]} Qf6
{[%clk 00:56:41]} {[%emt 00:03:43]} 14. Rd4 {[%clk 01:02:54]} {[%emt 00:07:35]}
Bb7 {[%clk 00:54:36]} {[%emt 00:02:36]} 15. Nb1 {[%clk 00:54:49]} {[%emt
00:08:35]} g5 {[%clk 00:46:48]} {[%emt 00:08:18]} 16. h3 {[%emt 00:13:08]} h5
{[%clk 00:46:29]} 17. Nbd2 {[%clk 00:39:00]} {[%emt 00:04:28]} e5 {[%clk
00:40:47]} {[%emt 00:06:12]} 18. Nxe4 {[%clk 00:34:18]} {[%emt 00:05:12]} dxe4
{[%clk 00:33:33]} {[%emt 00:07:46]} 19. Rxc4 {[%clk 00:26:46]} {[%emt
00:08:01]} exf3 {[%clk 00:32:22]} {[%emt 00:01:40]} 20. Rxc5 {[%clk 00:22:59]}
{[%emt 00:04:18]} fxg2 {[%clk 00:32:33]} {[%emt 00:00:20]} 21. Bxg2 {[%clk
00:21:28]} {[%emt 00:01:59]} Bxg2 {[%emt 00:00:07]} 22. Rg1 {[%emt 00:01:41]}
Bf3 {[%clk 00:26:21]} {[%emt 00:04:54]} 23. Rg3 {[%clk 00:12:29]} {[%emt
00:09:29]} g4 {[%clk 00:25:42]} {[%emt 00:01:10]} 24. Rxf3 {[%clk 00:11:09]}
{[%emt 00:01:49]} gxf3 {[%clk 00:24:32]} {[%emt 00:01:41]} 25. Qe4 {[%clk
00:11:20]} {[%emt 00:00:18]} Rd8 {[%clk 00:22:08]} {[%emt 00:02:55]} 26. Rxe5+
{[%clk 00:11:07]} {[%emt 00:00:42]} Kf8 {[%clk 00:22:03]} {[%emt 00:00:32]} 27.
h4 {[%clk 00:02:27]} {[%emt 00:09:14]} Rg8 {[%clk 00:21:42]} {[%emt 00:00:52]}
0-1

[Event "Championnat National du Sénégal"]
[Site "Arène National, Pikine, Senegal"]
[Date "2022.11.12"]
[Round "3.4"]
[White "Valerevna, Nadezhda Marochkina"]
[Black "CM Wane, Al Hassane"]
[Result "1-0"]
[TimeControl "01.30 fb .30"]
[WhiteElo "1668"]
[BlackElo "1789"]

1. d4 {[%clk 01:30:51]} {[%emt 00:00:08]} d5 {[%clk 01:30:57]} {[%emt
00:00:03]} 2. c4 {[%clk 01:31:16]} {[%emt 00:00:05]} e6 {[%clk 01:31:17]}
{[%emt 00:00:10]} 3. Nf3 {[%clk 01:31:35]} {[%emt 00:00:10]} Nf6 {[%clk
01:31:40]} {[%emt 00:00:08]} 4. Bg5 {[%clk 01:31:54]} {[%emt 00:00:11]} Nbd7
{[%clk 01:31:44]} {[%emt 00:00:26]} 5. e3 {[%clk 01:32:03]} {[%emt 00:00:21]}
c6 {[%clk 01:32:02]} {[%emt 00:00:12]} 6. Nc3 {[%clk 01:32:11]} {[%emt
00:00:22]} Bb4 {[%clk 01:32:26]} {[%emt 00:00:06]} 7. a3 {[%clk 01:32:00]}
{[%emt 00:00:41]} Bxc3+ {[%clk 01:32:39]} {[%emt 00:00:17]} 8. bxc3 {[%clk
01:32:19]} {[%emt 00:00:11]} Qa5 {[%clk 01:33:06]} {[%emt 00:00:03]} 9. Qb3
{[%clk 01:30:55]} {[%emt 00:01:52]} Ne4 {[%clk 01:32:57]} {[%emt 00:00:41]} 10.
Qb4 {[%clk 01:29:45]} {[%emt 00:01:40]} Qxb4 {[%clk 01:31:53]} {[%emt
00:01:34]} 11. cxb4 {[%clk 01:29:59]} {[%emt 00:00:16]} dxc4 {[%clk 01:31:26]}
{[%emt 00:00:57]} 12. Bxc4 {[%clk 01:29:52]} {[%emt 00:00:37]} b5 {[%clk
01:31:42]} {[%emt 00:00:14]} 13. Bd3 {[%clk 01:29:32]} {[%emt 00:00:49]} Nxg5
{[%clk 01:30:52]} {[%emt 00:01:21]} 14. Nxg5 {[%clk 01:29:43]} {[%emt
00:00:18]} Nf6 {[%clk 01:30:52]} {[%emt 00:00:31]} 15. O-O {[%clk 01:29:17]}
{[%emt 00:00:56]} h6 {[%clk 01:31:13]} {[%emt 00:00:09]} 16. Nf3 {[%clk
01:29:34]} {[%emt 00:00:12]} O-O {[%clk 01:31:41]} {[%emt 00:00:03]} 17. Rfc1
{[%clk 01:29:18]} {[%emt 00:00:45]} Bb7 {[%clk 01:32:08]} {[%emt 00:00:04]} 18.
Ne5 {[%clk 01:28:40]} {[%emt 00:01:05]} Rfc8 {[%clk 01:32:12]} {[%emt
00:00:28]} 19. Rc2 {[%clk 01:27:20]} {[%emt 00:01:50]} a5 {[%clk 01:32:14]}
{[%emt 00:00:29]} 20. Rac1 {[%clk 01:19:11]} {[%emt 00:08:38]} axb4 {[%clk
01:29:47]} {[%emt 00:02:58]} 21. axb4 {[%clk 01:19:04]} {[%emt 00:00:37]} Nd5
{[%clk 01:29:54]} {[%emt 00:00:22]} 22. Nxc6 {[%clk 01:12:25]} {[%emt
00:07:09]} Bxc6 {[%clk 01:30:10]} {[%emt 00:00:14]} 23. Rxc6 {[%clk 01:08:43]}
{[%emt 00:04:12]} Rxc6 {[%clk 01:30:17]} {[%emt 00:00:23]} 24. Rxc6 {[%clk
01:09:06]} {[%emt 00:00:06]} Nxb4 {[%clk 01:30:33]} {[%emt 00:00:15]} 25. Rc3
{[%clk 01:07:47]} {[%emt 00:01:48]} Nxd3 {[%clk 01:30:41]} {[%emt 00:00:22]} 26.
Kf1 {[%clk 01:07:41]} {[%emt 00:00:36]} Ra1+ {[%clk 01:26:34]} {[%emt
00:04:37]} 27. Ke2 {[%clk 01:07:59]} {[%emt 00:00:11]} Nb4 {[%clk 01:24:41]}
{[%emt 00:02:24]} 28. Rc8+ {[%clk 01:07:37]} {[%emt 00:00:52]} Kh7 {[%clk
01:25:08]} {[%emt 00:00:03]} 29. Rc5 {[%clk 01:07:57]} {[%emt 00:00:10]} Ra2+
{[%clk 01:24:30]} {[%emt 00:01:08]} 30. Kf3 {[%clk 01:07:52]} {[%emt 00:00:34]}
Ra5 {[%clk 01:24:53]} {[%emt 00:00:08]} 31. e4 {[%clk 01:07:58]} {[%emt
00:00:23]} Nd3 {[%clk 01:25:01]} {[%emt 00:00:23]} 32. Rc7 {[%clk 01:07:35]}
{[%emt 00:00:51]} Kg6 {[%clk 01:25:11]} {[%emt 00:00:21]} 33. d5 {[%clk
01:07:39]} {[%emt 00:00:27]} exd5 {[%clk 01:24:39]} {[%emt 00:01:02]} 34. exd5
{[%clk 01:07:58]} {[%emt 00:00:09]} Ra6 {[%clk 01:23:41]} {[%emt 00:01:29]} 35.
Ke3 {[%clk 01:06:35]} {[%emt 00:01:52]} Ne5 {[%clk 01:22:22]} {[%emt 00:01:50]}
36. Kd4 {[%clk 01:05:08]} {[%emt 00:01:58]} Kf6 {[%clk 01:16:28]} {[%emt
00:06:23]} 37. f4 {[%clk 01:05:03]} {[%emt 00:00:33]} Ra4+ {[%clk 01:16:35]}
{[%emt 00:00:27]} 38. Kc5 {[%clk 01:03:50]} {[%emt 00:01:43]} Rc4+ {[%clk
01:13:54]} {[%emt 00:03:11]} 39. Kd6 {[%clk 01:03:38]} {[%emt 00:00:42]} Nd3
{[%clk 01:13:09]} {[%emt 00:01:14]} 40. Rb7 {[%clk 01:03:09]} {[%emt 00:01:00]}
b4 {[%clk 01:13:25]} {[%emt 00:00:13]} 41. Rb6 {[%clk 01:03:12]} {[%emt
00:00:25]} Nxf4 {[%clk 01:10:34]} {[%emt 00:03:23]} 42. g3 {[%clk 01:03:18]}
{[%emt 00:00:25]} Nd3 {[%clk 01:10:11]} {[%emt 00:00:52]} 43. Kd7+ {[%clk
01:03:32]} {[%emt 00:00:17]} Kf5 {[%clk 01:10:40]} {[%emt 00:00:02]} 44. d6
{[%clk 01:03:47]} {[%emt 00:00:15]} Nc5+ {[%clk 01:09:07]} {[%emt 00:02:03]} 45.
Ke7 {[%clk 01:03:56]} {[%emt 00:00:20]} Ke5 {[%clk 00:57:23]} {[%emt 00:12:15]}
46. Rb5 {[%clk 01:02:29]} {[%emt 00:01:55]} Kd4 {[%clk 00:55:52]} {[%emt
00:02:02]} 47. Kxf7 {[%clk 01:01:50]} {[%emt 00:01:08]} g5 {[%clk 00:53:29]}
{[%emt 00:02:55]} 48. Kg6 {[%clk 01:01:15]} {[%emt 00:01:06]} g4 {[%clk
00:53:21]} {[%emt 00:00:37]} 49. Kxh6 {[%clk 01:01:24]} {[%emt 00:00:21]} Kd5
{[%clk 00:53:50]} {[%emt 00:00:01]} 50. d7 {[%clk 01:01:32]} {[%emt 00:00:22]}
Kc6 {[%clk 00:52:12]} {[%emt 00:02:08]} 51. Rxc5+ {[%clk 01:01:34]} {[%emt
00:00:27]} Rxc5 {[%clk 00:51:07]} {[%emt 00:01:35]} 52. d8=Q {[%clk 01:01:52]}
{[%emt 00:00:12]} Rc4 {[%clk 00:51:16]} {[%emt 00:00:21]} 53. Qc8+ {[%clk
00:59:14]} {[%emt 00:03:06]} Kb5 {[%clk 00:51:23]} {[%emt 00:00:26]} 54. Qd7+
{[%clk 00:59:29]} {[%emt 00:00:12]} Kc5 {[%clk 00:50:45]} {[%emt 00:01:11]} 55.
h4 {[%clk 00:58:46]} {[%emt 00:01:12]} gxh3 {[%clk 00:50:49]} {[%emt 00:00:26]}
56. Qxh3 {[%clk 00:59:10]} {[%emt 00:00:06]} b3 {[%clk 00:51:16]} {[%emt
00:00:03]} 57. Qf5+ {[%clk 00:56:50]} {[%emt 00:02:46]} Kb4 {[%clk 00:51:44]}
{[%emt 00:00:07]} 58. Qf8+ {[%clk 00:57:04]} {[%emt 00:00:15]} Kc3 {[%clk
00:52:10]} {[%emt 00:00:05]} 59. Qf6+ {[%clk 00:54:30]} {[%emt 00:03:01]} Kc2
{[%clk 00:52:09]} {[%emt 00:00:32]} 60. Qf5+ {[%clk 00:53:16]} {[%emt
00:01:43]} Kb2 {[%clk 00:51:50]} {[%emt 00:00:50]} 61. g4 {[%clk 00:50:59]}
{[%emt 00:02:47]} Ka2 {[%clk 00:52:09]} {[%emt 00:00:12]} 62. Qa5+ {[%clk
00:51:07]} {[%emt 00:00:22]} Kb1 {[%clk 00:52:22]} {[%emt 00:00:17]} 63. g5
{[%clk 00:50:47]} {[%emt 00:00:51]} b2 {[%clk 00:52:41]} {[%emt 00:00:11]} 64.
g6 {[%clk 00:47:22]} {[%emt 00:03:55]} Kc2 {[%clk 00:52:46]} {[%emt 00:00:25]}
65. Qf5+ {[%clk 00:46:17]} {[%emt 00:01:33]} Kc1 {[%clk 00:53:06]} {[%emt
00:00:10]} 66. Qf1+ {[%clk 00:46:06]} {[%emt 00:00:43]} Kd2 {[%clk 00:53:20]}
{[%emt 00:00:16]} 67. Qb1 {[%clk 00:44:56]} {[%emt 00:01:38]} Rc2 {[%clk
00:50:49]} {[%emt 00:03:03]} 68. g7 {[%clk 00:44:39]} {[%emt 00:00:46]} Kc3
{[%clk 00:51:18]} {[%emt 00:00:02]} 69. g8=Q {[%clk 00:44:26]} {[%emt
00:00:43]} Rh2+ {[%clk 00:51:36]} {[%emt 00:00:11]} 70. Kg7 {[%clk 00:44:51]}
{[%emt 00:00:04]} Rg2+ {[%clk 00:52:04]} {[%emt 00:00:04]} 71. Kf7 {[%clk
00:45:09]} {[%emt 00:00:11]} Rf2+ {[%clk 00:52:31]} {[%emt 00:00:02]} 72. Ke7
{[%clk 00:45:20]} {[%emt 00:00:18]} Rc2 {[%clk 00:50:11]} {[%emt 00:02:52]} 73.
Qc8+ {[%clk 00:45:34]} {[%emt 00:00:15]} 1-0

[Event "Championnat National du Sénégal"]
[Site "Arène National, Pikine, Senegal"]
[Date "2022.11.12"]
[Round "3.3"]
[White "Diatta, Robert Kaundum A."]
[Black "Koné, Sidy"]
[Result "0-1"]
[TimeControl "01.30 fb .30"]
[WhiteElo "1635"]
[BlackElo "1400"]

1. d4 {[%clk 01:30:54]} {[%emt 00:00:05]} Nf6 {[%clk 01:30:54]} {[%emt
00:00:07]} 2. e3 {[%clk 01:31:06]} {[%emt 00:00:18]} d5 {[%clk 01:31:19]}
{[%emt 00:00:05]} 3. Bd3 {[%clk 01:31:30]} {[%emt 00:00:06]} c5 {[%clk
01:31:26]} {[%emt 00:00:23]} 4. c3 {[%clk 01:31:48]} {[%emt 00:00:12]} Nc6
{[%clk 01:31:49]} {[%emt 00:00:08]} 5. f4 {[%clk 01:32:10]} {[%emt 00:00:08]}
Bg4 {[%clk 01:32:08]} {[%emt 00:00:11]} 6. Nf3 {[%clk 01:32:31]} {[%emt
00:00:09]} e6 {[%clk 01:32:16]} {[%emt 00:00:22]} 7. Nbd2 {[%clk 01:32:51]}
{[%emt 00:00:09]} Bd6 {[%clk 01:31:50]} {[%emt 00:00:56]} 8. O-O {[%clk
01:33:04]} {[%emt 00:00:16]} cxd4 {[%clk 01:31:45]} {[%emt 00:00:36]} 9. cxd4
{[%clk 01:33:24]} {[%emt 00:00:09]} O-O {[%clk 01:30:42]} {[%emt 00:01:33]} 10.
a3 {[%clk 01:33:27]} {[%emt 00:00:28]} Rc8 {[%clk 01:28:09]} {[%emt 00:03:02]}
11. Qe1 {[%clk 01:32:45]} {[%emt 00:01:11]} Qa5 {[%clk 01:27:00]} {[%emt
00:01:39]} 12. Qh4 {[%clk 01:30:15]} {[%emt 00:03:01]} Bf5 {[%clk 01:25:12]}
{[%emt 00:02:18]} 13. Bxf5 {[%clk 01:28:26]} {[%emt 00:02:19]} exf5 {[%clk
01:25:33]} {[%emt 00:00:09]} 14. Qh3 {[%clk 01:28:40]} {[%emt 00:00:14]} Ne7
{[%clk 01:24:07]} {[%emt 00:01:58]} 15. Ne5 {[%clk 01:27:16]} {[%emt 00:01:54]}
Rxc1 {[%clk 01:23:05]} {[%emt 00:01:33]} 16. Rd1 {[%emt 00:00:36]} Rxa1 17.
Rxa1 {[%clk 01:27:10]} Qxd2 {[%clk 01:23:23]} {[%emt 00:00:12]} 0-1

[Event "Championnat National du Sénégal"]
[Site "Arène National, Pikine, Senegal"]
[Date "2022.11.12"]
[Round "3.1"]
[White "Diankha, Bara"]
[Black "Diop, Wara"]
[Result "0-1"]
[TimeControl "01.30 fb .30"]
[WhiteElo "1400"]
[BlackElo "1636"]

1. c3 {[%clk 01:30:56]} {[%emt 00:00:03]} b6 {[%clk 01:30:27]} {[%emt
00:00:34]} 2. d4 {[%clk 01:30:54]} {[%emt 00:00:32]} Nf6 {[%clk 01:30:52]}
{[%emt 00:00:06]} 3. Nf3 {[%clk 01:30:53]} {[%emt 00:00:30]} Bb7 {[%clk
01:31:14]} {[%emt 00:00:09]} 4. e3 {[%clk 01:30:58]} {[%emt 00:00:23]} e6
{[%clk 01:30:20]} {[%emt 00:01:25]} 5. Be2 {[%clk 01:31:08]} {[%emt 00:00:20]}
Be7 {[%clk 01:26:17]} {[%emt 00:04:32]} 6. Bd3 {[%clk 01:31:02]} {[%emt
00:00:36]} c5 {[%clk 01:25:13]} {[%emt 00:01:35]} 7. O-O {[%clk 01:30:38]}
{[%emt 00:00:53]} d6 {[%clk 01:24:20]} {[%emt 00:01:23]} 8. Na3 {[%clk
01:30:18]} {[%emt 00:00:51]} O-O {[%clk 01:23:44]} {[%emt 00:01:06]} 9. Qc2
{[%clk 01:30:04]} {[%emt 00:00:44]} Bxf3 {[%clk 01:23:46]} {[%emt 00:00:28]} 10.
gxf3 {[%clk 01:30:04]} {[%emt 00:00:30]} Nbd7 {[%clk 01:22:51]} {[%emt
00:01:25]} 11. Qe2 {[%clk 01:29:18]} {[%emt 00:01:15]} d5 {[%clk 01:22:33]}
{[%emt 00:00:49]} 12. Kh1 {[%clk 01:29:09]} {[%emt 00:00:39]} e5 {[%clk
01:21:00]} {[%emt 00:02:01]} 13. Bf5 {[%clk 01:28:23]} {[%emt 00:01:17]} Bd6
{[%clk 01:19:58]} {[%emt 00:01:30]} 14. Rg1 {[%clk 01:28:10]} {[%emt 00:00:44]}
Re8 {[%clk 01:18:18]} {[%emt 00:02:11]} 15. e4 {[%clk 01:28:11]} {[%emt
00:00:30]} exd4 {[%clk 01:17:38]} {[%emt 00:01:10]} 16. Bh6 {[%clk 01:27:41]}
{[%emt 00:01:00]} g6 {[%clk 01:13:20]} {[%emt 00:04:46]} 17. Rg2 {[%clk
01:27:36]} {[%emt 00:00:36]} Nf8 {[%clk 01:12:16]} {[%emt 00:01:33]} 18. Rag1
{[%clk 01:27:05]} {[%emt 00:01:02]} dxc3 {[%clk 01:05:52]} {[%emt 00:06:53]} 19.
bxc3 {[%clk 01:26:54]} {[%emt 00:00:42]} Ne6 {[%clk 01:06:03]} {[%emt
00:00:19]} 20. Qd2 {[%clk 01:25:20]} {[%emt 00:02:05]} dxe4 {[%clk 01:02:12]}
{[%emt 00:04:20]} 21. fxe4 {[%clk 01:23:15]} {[%emt 00:02:36]} Bf8 {[%clk
00:57:30]} {[%emt 00:05:11]} 22. Qe3 {[%clk 01:20:11]} {[%emt 00:03:33]} Ng7
{[%clk 00:56:38]} {[%emt 00:01:24]} 23. Bxg7 {[%clk 01:19:31]} {[%emt
00:01:10]} Bxg7 {[%clk 00:56:24]} {[%emt 00:00:44]} 24. Qh3 {[%clk 01:17:57]}
{[%emt 00:02:03]} Nxe4 {[%clk 00:55:17]} {[%emt 00:01:38]} 25. Bxe4 {[%clk
01:16:19]} {[%emt 00:02:08]} Rxe4 {[%clk 00:54:38]} {[%emt 00:01:08]} 26. Nc2
{[%clk 01:16:13]} {[%emt 00:00:36]} Rc4 {[%clk 00:51:48]} {[%emt 00:03:20]} 27.
Rg3 {[%clk 01:15:48]} {[%emt 00:00:56]} Qc8 {[%clk 00:50:11]} {[%emt 00:02:07]}
28. Qg2 {[%clk 01:10:26]} {[%emt 00:05:51]} Rb8 {[%clk 00:49:01]} {[%emt
00:01:40]} 29. Ne3 {[%clk 01:10:12]} {[%emt 00:00:44]} Rxc3 {[%clk 00:45:21]}
{[%emt 00:04:08]} 30. Nd5 {[%clk 01:10:09]} {[%emt 00:00:34]} Rxg3 {[%clk
00:44:43]} {[%emt 00:01:07]} 31. Qxg3 {[%clk 01:09:48]} {[%emt 00:00:51]} Qb7
{[%clk 00:43:47]} {[%emt 00:01:26]} 32. Rg2 {[%clk 01:08:52]} {[%emt 00:01:27]}
Re8 {[%clk 00:42:30]} {[%emt 00:01:46]} 33. Qf3 {[%clk 01:07:20]} {[%emt
00:02:01]} Qd7 {[%clk 00:40:19]} {[%emt 00:02:41]} 34. Rg1 {[%clk 01:06:12]}
{[%emt 00:01:38]} Qe6 {[%clk 00:39:59]} {[%emt 00:00:50]} 35. Nc7 {[%clk
01:04:44]} {[%emt 00:02:00]} Qe4 {[%clk 00:40:04]} {[%emt 00:00:25]} 36. Rg3
{[%clk 01:03:07]} {[%emt 00:02:07]} Qxf3+ {[%clk 00:36:46]} {[%emt 00:03:46]}
37. Rxf3 {[%clk 01:03:22]} {[%emt 00:00:16]} Re7 {[%clk 00:36:33]} {[%emt
00:00:43]} 38. Nd5 {[%clk 01:03:18]} {[%emt 00:00:34]} Rd7 {[%clk 00:36:20]}
{[%emt 00:00:43]} 39. Rd3 {[%clk 01:03:15]} {[%emt 00:00:33]} Kf8 {[%clk
00:35:56]} {[%emt 00:00:54]} 40. Rd1 {[%clk 01:03:02]} {[%emt 00:00:44]} Bd4
{[%clk 00:35:04]} {[%emt 00:01:21]} 41. Nf6 {[%clk 01:02:34]} {[%emt 00:00:58]}
Re7 {[%clk 00:33:25]} {[%emt 00:02:09]} 42. Nxh7+ {[%clk 01:02:29]} {[%emt
00:00:35]} Kg7 {[%clk 00:33:23]} {[%emt 00:00:32]} 43. Ng5 {[%clk 01:02:57]}
{[%emt 00:00:02]} Re2 {[%clk 00:31:37]} {[%emt 00:02:16]} 44. f4 {[%clk
01:02:12]} {[%emt 00:01:15]} Rxa2 {[%clk 00:30:54]} {[%emt 00:01:13]} 45. Re1
{[%clk 01:01:11]} {[%emt 00:01:30]} Ra1 {[%clk 00:30:58]} {[%emt 00:00:28]} 46.
Rxa1 {[%clk 01:01:25]} {[%emt 00:00:15]} Bxa1 {[%clk 00:31:16]} {[%emt
00:00:12]} 47. Nf3 {[%clk 01:01:52]} {[%emt 00:00:03]} c4 {[%clk 00:31:08]}
{[%emt 00:00:39]} 48. Kg1 {[%clk 01:02:04]} {[%emt 00:00:18]} Kf6 {[%clk
00:31:20]} {[%emt 00:00:17]} 49. Kf2 {[%clk 01:02:19]} {[%emt 00:00:15]} Kf5
{[%clk 00:30:49]} {[%emt 00:01:01]} 50. Nd2 {[%clk 01:01:43]} {[%emt 00:01:07]}
c3 {[%clk 00:29:24]} {[%emt 00:01:54]} 51. Nb3 {[%clk 01:02:12]} {[%emt
00:00:03]} c2 {[%clk 00:29:11]} {[%emt 00:00:43]} 52. Ke2 {[%clk 01:02:09]}
{[%emt 00:00:33]} Bb2 {[%clk 00:29:22]} {[%emt 00:00:19]} 53. Kd2 {[%clk
01:02:16]} {[%emt 00:00:22]} c1=Q+ {[%clk 00:29:26]} {[%emt 00:00:26]} 54. Nxc1
{[%clk 01:02:43]} {[%emt 00:00:03]} Bxc1+ {[%clk 00:29:10]} {[%emt 00:00:46]}
55. Kxc1 {[%clk 01:03:11]} {[%emt 00:00:02]} Kxf4 {[%clk 00:29:38]} {[%emt
00:00:02]} 56. Kd1 {[%clk 01:03:33]} {[%emt 00:00:09]} Kf3 {[%clk 00:29:20]}
{[%emt 00:00:48]} 57. Ke1 {[%clk 01:04:00]} {[%emt 00:00:02]} Kg2 {[%clk
00:29:19]} {[%emt 00:00:31]} 58. h4 {[%clk 01:04:29]} {[%emt 00:00:02]} Kg3
{[%clk 00:29:10]} {[%emt 00:00:39]} 59. Ke2 {[%clk 01:04:53]} {[%emt 00:00:07]}
f5 {[%clk 00:29:16]} {[%emt 00:00:23]} 60. Kf1 {[%clk 01:05:19]} {[%emt
00:00:04]} a5 {[%clk 00:28:47]} {[%emt 00:00:59]} 61. h5 {[%clk 01:05:46]}
{[%emt 00:00:03]} gxh5 {[%clk 00:28:48]} {[%emt 00:00:29]} 62. Ke2 {[%clk
01:06:09]} {[%emt 00:00:07]} h4 {[%clk 00:29:00]} {[%emt 00:00:18]} 63. Kf1
{[%clk 01:06:32]} {[%emt 00:00:07]} a4 {[%clk 00:29:19]} {[%emt 00:00:11]} 64.
Ke2 {[%clk 01:06:58]} {[%emt 00:00:04]} h3 {[%clk 00:29:35]} {[%emt 00:00:13]}
65. Kd3 {[%clk 01:07:21]} {[%emt 00:00:07]} h2 {[%clk 00:29:46]} {[%emt
00:00:19]} 66. Kc4 {[%clk 01:07:51]} {[%emt 00:00:02]} h1=Q {[%clk 00:28:44]}
{[%emt 00:01:32]} 67. Kb5 {[%clk 01:08:19]} {[%emt 00:00:02]} a3 {[%clk
00:26:41]} {[%emt 00:02:32]} 68. Kxb6 {[%clk 01:08:46]} {[%emt 00:00:02]} Qc1
{[%clk 00:26:48]} {[%emt 00:00:23]} 69. Kb7 {[%clk 01:09:09]} {[%emt 00:00:08]}
a2 {[%clk 00:26:57]} {[%emt 00:00:20]} 0-1

[ePGN "0.1;DGT LiveChess/2.2"]